bitfinex/quotes_SOLUSD_20251206
["timestamp","ask_amount","ask_price","bid_price","bid_amount"]
[1765051785098,8.23089343,132.26,132.23,6.12192758]
[1765051785498,0.67,132.25,132.23,6.12192758]
[1765051787325,0.67,132.25,132.23,0.92]
[1765051787728,7.56089343,132.26,132.23,0.92]
[1765051787908,8.23089343,132.26,132.23,0.92]
[1765051788822,8.23089343,132.26,132.23,6.12192758]
[1765051790623,7.56029333,132.27,132.23,6.12192758]
[1765051790825,0.67,132.25,132.23,0.2]
[1765051791028,14.17192758,132.25,132.23,0.2]
[1765051791521,0.67,132.24,132.23,0.2]
[1765051792727,13.43393604,132.24,132.23,0.2]
[1765051794133,8.23146571,132.25,132.23,0.2]
[1765051794378,16.53146571,132.25,132.23,0.2]
[1765051795230,0.67,132.24,132.23,0.2]
[1765051800752,8.99,132.25,132.23,0.2]
[1765051802945,8.3,132.25,132.23,0.2]
[1765051803151,0.69,132.24,132.23,0.2]
[1765051803447,8.99,132.25,132.23,0.2]
[1765051803647,8.99,132.25,132.23,5.40192758]
[1765051803850,104.3,132.27,132.24,0.68]
[1765051803851,112.55045819,132.27,132.24,0.68]
[1765051804047,8.3,132.27,132.26,5.20192758]
[1765051804437,8.99,132.27,132.25,5.88192758]
[1765051804639,8.3,132.27,132.25,5.88192758]
[1765051804846,8.99,132.27,132.25,5.88192758]
[1765051805040,8.3,132.27,132.26,5.88192758]
[1765051805746,8.24958263,132.29,132.26,5.88192758]
[1765051806057,8.24958263,132.29,132.27,5.20192758]
[1765051806058,8.99,132.29,132.27,5.20192758]
[1765051806748,0.69,132.29,132.27,5.20192758]
[1765051806949,8.99,132.29,132.27,5.20192758]
[1765051808229,8.99,132.29,132.27,5.88192758]
[1765051809459,8.99,132.32,132.28,5.88192758]
[1765051809660,8.3,132.32,132.29,5.88192758]
[1765051809832,0.69,132.31,132.29,5.20192758]
[1765051811061,0.69,132.31,132.29,5.88192758]
[1765051811239,8.99,132.32,132.29,5.88192758]
[1765051813358,8.3,132.32,132.3,5.88192758]
[1765051814338,8.99,132.32,132.3,5.88192758]
[1765051814741,0.69,132.31,132.28,5.20192758]
[1765051815251,0.69,132.31,132.28,0.68]
[1765051815648,0.69,132.31,132.28,8.23929996]
[1765051816250,8.24816718,132.31,132.27,12.7620266]
[1765051816555,8.24816718,132.31,132.27,13.4420266]
[1765051816759,0.69,132.3,132.27,13.4420266]
[1765051818561,0.69,132.3,132.27,11.56874251]
[1765051821155,0.69,132.3,132.28,3.32864349]
[1765051821352,9.0,132.32,132.29,3.32864349]
[1765051821567,9.0,132.32,132.3,3.32864349]
[1765051823565,8.3,132.32,132.31,3.32864349]
[1765051823765,8.3,132.32,132.3,0.67]
[1765051824072,8.3,132.32,132.3,3.99864349]
[1765051824263,9.0,132.32,132.3,3.99864349]
[1765051824773,9.0,132.32,132.3,3.32864349]
[1765051825466,9.0,132.32,132.31,3.32864349]
[1765051827562,9.0,132.32,132.3,10.88716089]
[1765051831880,0.7,132.31,132.29,10.88759054]
[1765051832066,9.0,132.32,132.29,11.55759054]
[1765051832756,0.7,132.31,132.29,11.55759054]
[1765051834676,9.0,132.32,132.3,3.32864349]
[1765051834977,0.7,132.31,132.29,3.32864349]
[1765051835678,0.7,132.31,132.29,3.99864349]
[1765051836462,0.7,132.31,132.29,11.55764389]
[1765051841270,0.7,132.31,132.3,3.32864349]
[1765051841783,0.7,132.36,132.31,8.80994492]
[1765051841966,8.3,132.36,132.35,3.32864349]
[1765051842368,9.0,132.36,132.35,3.32864349]
[1765051844272,9.0,132.36,132.34,3.32864349]
[1765051844670,9.0,132.36,132.34,3.99864349]
[1765051845388,8.3,132.36,132.35,3.32864349]
[1765051845578,9.0,132.36,132.34,3.99864349]
[1765051851494,9.0,132.36,132.34,11.55481046]
[1765051851796,8.3,132.36,132.34,11.55481046]
[1765051852595,8.97,132.36,132.34,11.55481046]
[1765051857098,8.3,132.36,132.34,11.55481046]
[1765051858298,8.97,132.36,132.34,11.55481046]
[1765051858486,8.97,132.36,132.34,10.88481046]
[1765051858685,8.97,132.36,132.34,11.56481046]
[1765051861795,8.3,132.36,132.35,11.56436695]
[1765051862198,8.3,132.38,132.35,11.56436695]
[1765051862382,8.3,132.38,132.37,3.32864349]
[1765051864402,8.3,132.38,132.37,4.00864349]
[1765051864573,8.3,132.38,132.37,3.32864349]
[1765051864978,8.97,132.38,132.37,3.32864349]
[1765051865194,8.97,132.38,132.36,4.00864349]
[1765051865504,8.97,132.38,132.36,3.32864349]
[1765051865711,0.67,132.37,132.34,15.11144692]
[1765051865892,0.67,132.37,132.33,19.63750749]
[1765051866092,0.67,132.37,132.34,4.00864349]
[1765051867179,8.3,132.38,132.36,3.32864349]
[1765051867382,8.3,132.38,132.37,3.32864349]
[1765051868310,8.3,132.38,132.36,4.00864349]
[1765051868612,8.97,132.38,132.36,4.00864349]
[1765051869504,8.97,132.38,132.35,10.88408704]
[1765051869704,8.3,132.38,132.35,11.56408704]
[1765051870009,0.67,132.37,132.35,11.56408704]
[1765051872607,0.67,132.37,132.35,8.23544355]
[1765051876811,8.3,132.38,132.35,8.23544355]
[1765051877013,8.3,132.38,132.35,11.56408704]
[1765051877014,8.97,132.38,132.35,11.56408704]
[1765051878515,8.97,132.38,132.35,13.42965997]
[1765051880107,0.7,132.37,132.35,7.55544355]
[1765051880309,0.7,132.37,132.35,8.24544355]
[1765051880608,9.0,132.38,132.35,8.24544355]
[1765051880912,0.7,132.37,132.35,7.55544355]
[1765051881300,0.7,132.37,132.34,7.55609232]
[1765051881903,0.7,132.37,132.34,8.24609232]
[1765051883597,0.7,132.37,132.34,13.44030874]
[1765051888522,15.85417891,132.38,132.35,0.69]
[1765051888523,8.3,132.38,132.35,0.69]
[1765051888821,0.7,132.37,132.35,13.43986957]
[1765051889027,9.0,132.38,132.35,13.43986957]
[1765051889826,8.3,132.38,132.36,5.88421642]
[1765051890213,9.0,132.38,132.36,5.88421642]
[1765051890721,8.3,132.38,132.37,5.88421642]
[1765051890917,8.3,132.38,132.37,5.19421642]
[1765051891120,8.3,132.38,132.36,13.43903243]
[1765051892042,8.3,132.38,132.36,12.74903243]
[1765051892336,8.3,132.38,132.37,0.69]
[1765051894943,8.3,132.38,132.37,13.43879827]
[1765051895113,0.8,132.41,132.38,8.80994492]
[1765051895312,0.8,132.41,132.4,5.19421642]
[1765051895313,0.1,132.41,132.4,5.19421642]
[1765051895757,0.1,132.41,132.4,5.88421642]
[1765051896633,0.1,132.41,132.4,13.43708651]
[1765051905038,0.8,132.41,132.39,12.74746555]
[1765051905235,0.1,132.41,132.4,5.19421642]
[1765051905439,0.8,132.41,132.4,5.19421642]
[1765051905635,0.1,132.41,132.4,5.19421642]
[1765051906531,0.8,132.41,132.4,5.19421642]
[1765051910157,0.1,132.41,132.4,5.19421642]
[1765051910362,0.76,132.41,132.4,5.19421642]
[1765051911359,0.1,132.41,132.4,5.19421642]
[1765051914353,0.1,132.41,132.4,12.74708651]
[1765051914543,0.1,132.41,132.4,13.44708651]
[1765051915260,0.1,132.41,132.4,12.74708651]
[1765051915761,0.1,132.41,132.4,13.44708651]
[1765051920465,0.1,132.41,132.4,22.25703143]
[1765051921951,0.1,132.45,132.43,16.308864]
[1765051922364,0.1,132.45,132.44,5.19421642]
[1765051923072,0.1,132.45,132.44,12.74480536]
[1765051925053,0.1,132.45,132.44,13.44480536]
[1765051925366,0.1,132.45,132.44,18.63902178]
[1765051929185,0.1,132.45,132.44,27.4489667]
[1765051929360,0.82,132.49,132.48,5.19421642]
[1765051933550,0.32,132.49,132.48,5.19421642]
[1765051939383,21.36195587,132.49,132.43,7.55096569]
[1765051939673,5.19421642,132.47,132.42,5.19421642]
[1765051939880,8.3,132.46,132.42,5.19421642]
[1765051940066,9.02,132.46,132.42,12.74586235]
[1765051940267,0.7,132.45,132.43,5.19421642]
[1765051940578,0.7,132.45,132.43,3.32122804]
[1765051941160,9.0,132.46,132.44,3.32122804]
[1765051941388,9.0,132.46,132.45,3.32122804]
[1765051942184,9.0,132.46,132.44,3.32122804]
[1765051942388,8.3,132.46,132.43,8.26113815]
[1765051942570,0.7,132.45,132.44,3.32122804]
[1765051943683,0.7,132.45,132.44,10.87181698]
[1765051943864,8.3,132.46,132.44,10.87181698]
[1765051944065,0.7,132.45,132.44,10.87181698]
[1765051944887,8.3,132.46,132.44,10.87181698]
[1765051945074,9.0,132.46,132.44,10.87181698]
[1765051948588,9.0,132.46,132.44,11.58181698]
[1765051949283,8.3,132.46,132.44,10.87181698]
[1765051949489,0.7,132.45,132.44,7.55058894]
[1765051950065,9.0,132.46,132.44,7.55058894]
[1765051950474,0.7,132.45,132.44,7.55058894]
[1765051952010,0.7,132.45,132.43,10.87231506]
[1765051952289,0.7,132.45,132.43,16.308864]
[1765051956861,18.8704038,132.49,132.44,4.03122804]
[1765051956862,7.54838755,132.48,132.44,4.03122804]
[1765051957085,9.0,132.47,132.44,4.03122804]
[1765051957465,0.7,132.46,132.44,4.03122804]
[1765051957894,0.7,132.46,132.44,3.32122804]
[1765051959891,8.3,132.47,132.45,4.03122804]
[1765051960097,9.0,132.47,132.45,4.03122804]
[1765051963671,9.0,132.47,132.45,3.32122804]
[1765051966799,9.0,132.47,132.44,8.26031834]
[1765051967023,9.0,132.47,132.45,3.32122804]
[1765051967691,9.0,132.47,132.45,4.03122804]
[1765051967876,9.0,132.47,132.45,0.71]
[1765051968288,9.0,132.47,132.44,11.58154638]
[1765051970491,8.3,132.47,132.46,3.32122804]
[1765051970698,8.3,132.47,132.45,3.98122804]
[1765051971102,8.3,132.47,132.46,0.66]
[1765051971272,8.3,132.47,132.45,3.98122804]
[1765051971674,8.3,132.47,132.46,0.66]
[1765051972196,8.3,132.47,132.45,3.32122804]
[1765051972507,8.3,132.47,132.45,3.98122804]
[1765051974404,8.3,132.47,132.45,3.32122804]
[1765051974585,8.3,132.47,132.45,3.98122804]
[1765051976600,8.3,132.47,132.45,3.32122804]
[1765051976799,8.3,132.47,132.45,3.98122804]
[1765051977296,8.3,132.47,132.45,3.32122804]
[1765051977597,8.3,132.47,132.45,3.98122804]
[1765051978402,8.3,132.47,132.45,0.66]
[1765051978606,8.96,132.47,132.45,0.66]
[1765051978795,8.3,132.47,132.45,8.20985876]
[1765051979000,8.3,132.47,132.45,11.5310868]
[1765051979506,8.96,132.48,132.45,11.5310868]
[1765051980817,8.96,132.48,132.45,8.20985876]
[1765051980987,0.66,132.47,132.45,8.20985876]
[1765051981305,0.66,132.47,132.43,27.18109211]
[1765051981505,3.32122804,132.46,132.42,8.21157073]
[1765051981694,8.3,132.45,132.42,8.21157073]
[1765051981877,8.96,132.45,132.42,8.21157073]
[1765051982080,0.66,132.44,132.42,8.21157073]
[1765051982281,0.66,132.44,132.42,11.53279877]
[1765051982696,8.3,132.45,132.43,0.66]
[1765051982896,8.3,132.45,132.43,3.98122804]
[1765051983102,8.3,132.45,132.43,0.66]
[1765051983303,8.96,132.45,132.43,0.66]
[1765051984286,8.96,132.45,132.43,11.53225336]
[1765051985401,8.96,132.45,132.43,8.21102532]
[1765051988212,8.96,132.45,132.43,7.55102532]
[1765051988705,8.3,132.45,132.43,7.55102532]
[1765051988912,8.3,132.45,132.43,8.21102532]
[1765051989291,16.51012342,132.45,132.42,3.98122804]
[1765051989497,8.96,132.45,132.42,3.98122804]
[1765051994721,3.98122804,132.44,132.4,16.968864]
[1765051994921,7.5511591,132.43,132.4,16.968864]
[1765051995107,8.2111591,132.43,132.4,16.968864]
[1765051999727,8.2111591,132.43,132.4,20.29009204]
[1765052000437,8.2111591,132.43,132.4,22.15986993]
[1765052000730,8.2111591,132.43,132.4,21.49986993]
[1765052000912,8.2111591,132.43,132.41,0.71]
[1765052001826,8.2111591,132.43,132.4,21.49986993]
[1765052002025,8.2111591,132.43,132.4,22.20986993]
[1765052003028,0.72,132.42,132.4,22.20986993]
[1765052003229,7.55058894,132.44,132.4,22.20986993]
[1765052003416,0.72,132.43,132.41,0.71]
[1765052005716,8.27124022,132.43,132.41,0.71]
[1765052005926,8.27124022,132.43,132.41,5.90100593]
[1765052015938,8.3,132.42,132.41,5.90100593]
[1765052021242,8.3,132.42,132.41,5.19100593]
[1765052022141,8.3,132.42,132.41,5.90100593]
[1765052026238,8.3,132.42,132.41,5.19100593]
[1765052026745,8.3,132.42,132.41,5.90100593]
[1765052031744,8.3,132.42,132.38,16.958864]
[1765052031745,9.0,132.42,132.38,16.958864]
[1765052031927,0.7,132.41,132.38,22.14986993]
[1765052032924,0.7,132.41,132.38,0.65]
[1765052033653,0.7,132.41,132.38,5.84100593]
[1765052033830,8.25263428,132.41,132.38,5.84100593]
[1765052034350,0.7,132.4,132.38,5.19100593]
[1765052035160,0.7,132.4,132.38,5.84100593]
[1765052037952,7.55263428,132.41,132.38,0.65]
[1765052038149,0.7,132.4,132.39,5.19100593]
[1765052045869,0.7,132.4,132.38,5.84100593]
[1765052046766,0.7,132.4,132.38,0.65]
[1765052046767,8.25290911,132.4,132.38,0.65]
[1765052047267,0.7,132.4,132.38,5.84100593]
[1765052049067,0.7,132.4,132.38,0.65]
[1765052052636,0.7,132.4,132.38,5.84100593]
[1765052052837,7.55250533,132.41,132.38,5.84100593]
[1765052053046,8.25250533,132.41,132.38,5.84100593]
[1765052053259,0.7,132.4,132.38,5.84100593]
[1765052053462,7.55250533,132.41,132.38,5.84100593]
[1765052053667,8.25250533,132.41,132.38,5.84100593]
[1765052053967,7.55250533,132.41,132.38,5.84100593]
[1765052054264,0.7,132.4,132.38,5.84100593]
[1765052056370,0.7,132.4,132.38,0.65]
[1765052058268,8.25250533,132.41,132.39,5.19100593]
[1765052058563,7.55250533,132.41,132.39,5.19100593]
[1765052058864,0.7,132.4,132.39,5.19100593]
[1765052060465,0.7,132.4,132.39,3.32316368]
[1765052062772,0.7,132.4,132.38,3.32316368]
[1765052063553,0.7,132.4,132.38,3.99316368]
[1765052066486,8.3,132.39,132.35,3.32316368]
[1765052066658,0.66,132.38,132.35,3.99316368]
[1765052067162,0.66,132.38,132.35,0.67]
[1765052067952,3.98316368,132.38,132.33,27.85873685]
[1765052068151,3.98316368,132.38,132.34,0.67]
[1765052068467,11.53781198,132.37,132.33,7.55670917]
[1765052068777,8.3,132.36,132.33,7.55670917]
[1765052068962,8.3,132.36,132.33,8.22670917]
[1765052068963,8.96,132.36,132.33,8.22670917]
[1765052069799,0.66,132.35,132.33,0.67]
[1765052070656,0.66,132.35,132.32,23.86612405]
[1765052070978,0.66,132.35,132.32,24.53612405]
[1765052071180,0.66,132.35,132.33,0.67]
[1765052073178,16.51516658,132.36,132.33,0.67]
[1765052076363,19.83833026,132.36,132.33,0.67]
[1765052087298,3.32316368,132.34,132.31,7.5579424]
[1765052087485,11.62316368,132.33,132.31,0.67]
[1765052087667,8.3,132.33,132.31,0.67]
[1765052088076,8.96,132.33,132.31,8.97]
[1765052088491,8.3,132.33,132.31,8.97]
[1765052088677,8.96,132.33,132.31,12.29316368]
[1765052089901,8.3,132.33,132.31,12.29316368]
[1765052090896,8.96,132.33,132.31,12.29316368]
[1765052092075,8.3,132.33,132.31,12.29316368]
[1765052093713,8.3,132.33,132.32,3.32316368]
[1765052098690,8.3,132.33,132.32,4.04316368]
[1765052099212,8.3,132.33,132.32,20.35202768]
[1765052101304,0.71,132.34,132.32,20.35202768]
[1765052101305,8.3,132.34,132.32,4.04316368]
[1765052101505,8.3,132.34,132.33,0.72]
[1765052101711,8.3,132.34,132.32,12.34316368]
[1765052101907,9.01,132.34,132.32,12.34316368]
[1765052106618,9.01,132.34,132.32,9.02]
[1765052106793,9.01,132.34,132.32,12.34316368]
[1765052115313,16.5663716,132.34,132.32,0.72]
[1765052115618,0.71,132.33,132.3,16.308864]
[1765052115921,4.03316368,132.33,132.28,3.32316368]
[1765052116110,3.32316368,132.32,132.27,11.8032939]
[1765052116310,8.3,132.31,132.27,11.8032939]
[1765052116496,9.01,132.31,132.27,11.0832939]
[1765052116699,0.71,132.3,132.28,0.72]
[1765052117113,0.71,132.3,132.27,11.0832939]
[1765052117326,0.71,132.3,132.28,0.72]
[1765052119914,8.26859596,132.3,132.28,0.72]
[1765052120226,8.26859596,132.3,132.27,4.20316368]
[1765052122636,8.26859596,132.3,132.27,6.08114607]
[1765052127320,0.69,132.29,132.27,0.2]
[1765052127621,8.3,132.28,132.27,0.2]
[1765052128027,8.99,132.28,132.27,0.2]
[1765052128220,8.3,132.28,132.27,0.2]
[1765052128621,8.99,132.28,132.27,0.2]
[1765052129332,8.3,132.28,132.27,0.2]
[1765052132127,16.5497218,132.28,132.27,0.2]
[1765052138747,16.5497218,132.28,132.27,5.40114607]
[1765052138981,8.3,132.3,132.27,13.64137952]
[1765052139183,8.3,132.3,132.29,5.20114607]
[1765052146185,8.3,132.3,132.29,5.20114607]
[1765052148588,8.3,132.3,132.28,5.88114607]
[1765052150490,8.3,132.3,132.29,5.20114607]
[1765052155591,8.3,132.3,132.29,5.92114607]
[1765052155799,8.3,132.3,132.29,5.20114607]
[1765052161589,8.3,132.3,132.28,5.92114607]
[1765052164512,8.3,132.3,132.29,5.20114607]
[1765052166494,8.3,132.31,132.29,5.92114607]
[1765052166694,8.3,132.31,132.3,5.92114607]
[1765052174630,8.3,132.31,132.3,13.47972505]
[1765052175740,112.52648002,132.34,132.3,13.47972505]
[1765052175741,104.3,132.34,132.3,13.47972505]
[1765052175906,8.3,132.34,132.33,5.20114607]
[1765052176105,8.97,132.34,132.32,5.20114607]
[1765052176604,8.3,132.34,132.33,5.20114607]
[1765052176806,8.97,132.34,132.33,5.20114607]
[1765052177314,8.3,132.34,132.31,7.55768936]
[1765052177514,8.97,132.34,132.32,5.20114607]
[1765052177714,8.97,132.34,132.32,5.92114607]
[1765052178317,8.3,132.34,132.33,5.20114607]
[1765052182243,40.39527041,132.38,132.33,5.20114607]
[1765052182244,0.7,132.37,132.33,5.86114607]
[1765052182540,0.7,132.37,132.36,5.20114607]
[1765052182836,9.0,132.37,132.36,5.20114607]
[1765052184341,9.0,132.37,132.36,3.32465054]
[1765052185434,9.0,132.37,132.35,3.32465054]
[1765052186435,9.0,132.37,132.36,3.32465054]
[1765052186639,8.3,132.37,132.36,3.32465054]
[1765052188846,8.3,132.37,132.35,3.98465054]
[1765052190752,8.3,132.37,132.35,10.88022522]
[1765052190941,8.3,132.37,132.36,3.98465054]
[1765052191548,112.55286797,132.41,132.36,11.53961081]
[1765052191725,8.3,132.4,132.38,3.32465054]
[1765052191926,8.3,132.4,132.39,3.32465054]
[1765052192425,8.3,132.4,132.39,3.98465054]
[1765052192846,8.3,132.4,132.38,3.98465054]
[1765052193052,9.0,132.4,132.38,3.98465054]
[1765052194419,8.3,132.4,132.38,3.98465054]
[1765052195764,8.3,132.4,132.39,3.98465054]
[1765052195928,8.3,132.4,132.39,3.32465054]
[1765052196573,16.55287766,132.4,132.36,3.32465054]
[1765052196863,0.7,132.39,132.36,0.66]
[1765052197432,0.7,132.39,132.36,3.98465054]
[1765052198159,0.7,132.39,132.37,3.32465054]
[1765052200830,0.7,132.39,132.36,3.98465054]
[1765052203347,0.7,132.39,132.37,3.32465054]
[1765052205061,0.7,132.39,132.36,3.98465054]
[1765052208560,0.7,132.39,132.37,3.32465054]
[1765052209440,8.3,132.4,132.38,3.98465054]
[1765052209931,9.0,132.4,132.38,3.98465054]
[1765052211440,8.3,132.4,132.38,3.98465054]
[1765052214135,8.98,132.4,132.38,3.98465054]
[1765052214564,0.68,132.39,132.36,3.32465054]
[1765052214861,0.68,132.39,132.34,20.31351454]
[1765052215158,4.00465054,132.39,132.34,20.31351454]
[1765052215460,24.31816508,132.39,132.34,4.00465054]
[1765052215638,0.68,132.38,132.34,4.00465054]
[1765052215957,8.3,132.37,132.34,4.00465054]
[1765052216159,15.85464448,132.37,132.35,0.68]
[1765052216456,16.53464448,132.37,132.34,4.00465054]
[1765052217253,16.53464448,132.37,132.34,0.68]
[1765052218649,0.68,132.36,132.32,27.87079519]
[1765052218850,4.00465054,132.36,132.32,16.988864]
[1765052219462,0.68,132.36,132.33,0.68]
[1765052220658,8.3,132.37,132.34,3.32465054]
[1765052220865,8.3,132.37,132.33,8.23666178]
[1765052220866,8.3,132.37,132.35,3.32465054]
[1765052221071,8.3,132.37,132.34,4.00465054]
[1765052221959,8.3,132.37,132.35,0.68]
[1765052226579,8.3,132.37,132.35,4.00465054]
[1765052229476,8.3,132.37,132.36,0.68]
[1765052229679,8.3,132.37,132.35,4.00465054]
[1765052229864,8.3,132.37,132.35,0.68]
[1765052230067,8.3,132.37,132.35,4.00465054]
[1765052230272,8.98,132.37,132.35,4.00465054]
[1765052230978,8.3,132.37,132.35,4.00465054]
[1765052232882,8.98,132.37,132.35,4.00465054]
[1765052233378,0.68,132.36,132.33,8.3]
[1765052233599,0.68,132.36,132.33,4.00465054]
[1765052234686,8.23516907,132.36,132.33,4.00465054]
[1765052236478,8.23516907,132.36,132.33,0.68]
[1765052237991,8.3,132.37,132.35,3.32465054]
[1765052238187,8.3,132.37,132.36,3.32465054]
[1765052238395,8.3,132.37,132.36,4.00465054]
[1765052242601,8.3,132.39,132.36,11.5597987]
[1765052242786,8.3,132.39,132.37,4.02465054]
[1765052242982,9.01,132.39,132.37,4.02465054]
[1765052244827,9.01,132.39,132.37,0.7]
[1765052246202,9.01,132.39,132.37,4.02465054]
[1765052246503,9.01,132.39,132.37,0.7]
[1765052246902,9.01,132.39,132.36,5.89385121]
[1765052247112,16.56349376,132.39,132.36,5.89385121]
[1765052247491,16.56349376,132.39,132.37,0.7]
[1765052250908,16.56349376,132.39,132.37,5.89385121]
[1765052251805,16.56349376,132.39,132.37,5.19385121]
[1765052251999,8.3,132.38,132.37,5.19385121]
[1765052253492,8.3,132.38,132.37,5.89385121]
[1765052255113,8.3,132.38,132.37,5.19385121]
[1765052255711,8.26349376,132.39,132.37,5.19385121]
[1765052255914,8.26349376,132.39,132.37,5.89385121]
[1765052255915,8.3,132.38,132.37,5.89385121]
[1765052256308,8.26349376,132.39,132.37,5.89385121]
[1765052256615,8.3,132.38,132.37,5.19385121]
[1765052259211,8.26349376,132.39,132.37,5.19385121]
[1765052259414,8.3,132.38,132.37,5.19385121]
[1765052261719,8.26349376,132.39,132.37,5.19385121]
[1765052261921,8.3,132.38,132.37,5.89385121]
[1765052263599,8.3,132.38,132.37,5.19385121]
[1765052264618,8.26349376,132.39,132.37,5.19385121]
[1765052264917,8.3,132.38,132.37,5.19385121]
[1765052265122,8.3,132.38,132.37,5.89385121]
[1765052270232,8.3,132.38,132.37,13.44843306]
[1765052272031,8.98,132.4,132.37,13.44843306]
[1765052272326,8.98,132.4,132.38,5.19385121]
[1765052280937,8.98,132.4,132.38,5.90385121]
[1765052281742,16.5329619,132.4,132.38,5.90385121]
[1765052282242,16.5329619,132.4,132.38,5.19385121]
[1765052282837,16.5329619,132.4,132.38,5.90385121]
[1765052286835,15.8529619,132.4,132.38,5.90385121]
[1765052287538,16.5729619,132.4,132.38,5.90385121]
[1765052294035,0.72,132.39,132.35,22.21271521]
[1765052294219,8.3,132.38,132.35,5.90385121]
[1765052294718,9.02,132.38,132.36,0.71]
[1765052295143,9.02,132.38,132.36,5.90385121]
[1765052296749,16.57402531,132.38,132.36,5.90385121]
[1765052296923,16.57402531,132.38,132.36,0.71]
[1765052302445,8.3,132.38,132.36,5.90385121]
[1765052302834,8.3,132.38,132.37,0.68]
[1765052303736,8.3,132.38,132.36,5.87385121]
[1765052305247,104.3,132.42,132.37,5.87385121]
[1765052305248,0.7,132.41,132.37,5.87385121]
[1765052305451,8.3,132.39,132.38,5.19385121]
[1765052305750,8.3,132.39,132.38,5.87385121]
[1765052308354,8.3,132.39,132.38,4.00327475]
[1765052310555,8.3,132.39,132.38,0.68]
[1765052310858,7.55249005,132.41,132.38,4.00327475]
[1765052311158,15.85249005,132.41,132.4,3.32327475]
[1765052311358,15.85249005,132.41,132.39,4.00327475]
[1765052312244,15.85249005,132.41,132.4,0.68]
[1765052313140,8.3,132.41,132.4,0.68]
[1765052313341,8.3,132.41,132.4,4.00327475]
[1765052314246,8.3,132.41,132.4,0.68]
[1765052316060,8.3,132.41,132.4,4.00327475]
[1765052321761,8.3,132.41,132.39,0.68]
[1765052322060,8.3,132.41,132.4,3.32327475]
[1765052322538,8.3,132.41,132.4,4.00327475]
[1765052326089,8.3,132.41,132.39,7.55342915]
[1765052326299,0.7,132.4,132.37,23.86343001]
[1765052326481,0.7,132.4,132.37,27.86670476]
[1765052326681,18.87921199,132.42,132.39,10.87653053]
[1765052326874,9.0,132.43,132.4,4.00327475]
[1765052327417,9.0,132.43,132.41,3.32327475]
[1765052328697,16.55120367,132.43,132.41,3.32327475]
[1765052330698,15.85120367,132.43,132.41,4.00327475]
[1765052330866,16.51120367,132.43,132.41,4.00327475]
[1765052331998,8.3,132.43,132.42,3.32327475]
[1765052332304,8.3,132.43,132.42,4.02327475]
[1765052340707,8.3,132.43,132.42,11.57500409]
[1765052342190,8.3,132.43,132.42,31.20714284]
[1765052343098,8.28,132.45,132.42,31.20714284]
[1765052343288,8.98,132.45,132.44,3.32327475]
[1765052348004,0.7,132.49,132.44,14.89682307]
[1765052348186,8.28,132.49,132.47,3.32327475]
[1765052348502,8.98,132.49,132.47,3.32327475]
[1765052348698,8.28,132.49,132.47,3.32327475]
[1765052348917,8.28,132.49,132.47,4.02327475]
[1765052349285,8.98,132.49,132.47,4.02327475]
[1765052349980,8.98,132.49,132.47,3.32327475]
[1765052350805,0.7,132.48,132.46,8.98]
[1765052350994,0.7,132.48,132.45,3.32327475]
[1765052351311,0.7,132.48,132.46,3.32327475]
[1765052351784,16.52780334,132.49,132.46,4.02327475]
[1765052352205,16.52780334,132.49,132.47,3.32327475]
[1765052352404,8.98,132.49,132.47,3.32327475]
[1765052352594,8.98,132.49,132.47,4.02327475]
[1765052352798,8.28,132.49,132.48,4.02327475]